Workbook

Sheet Rectangle
B1: Contours of the Area Function
B2: for a Rectangle
B4: This DIGMath module lets you investigate
C5: the contour diagrams
B6: of the area function A = xy
B7: for a rectangle of dimensions x by y.
A10: Three contours shown correspond to A = 10, A = 30, and A = 50.
A13: Select a fourth contour ( 0 to 50): A = | E13: =G13 -> 38 | G13: 38
J14: Trace along the contours at x0 = | N14: =L15/10 -> 2.9
L15: 29 | M15: =a+L15*(b-a)/100 -> -1.68
B16: The interval used is from x = 0 to x = 10.
J18: At the tracing point x0 = | M18: =x0 -> 2.9
A19: Click each item below for suggestions and investigations
B20: Item 1 | J20: the value of y on the contour with A = 10 is | P20: =Sheet2!B11 -> 3.45
B21: Item 2 | J21: the value of y on the contour with A = 30 is | P21: =Sheet2!B24 -> 10.34
B22: Item 3 | J22: the value of y on the contour with A = 50 is | P22: =Sheet2!B34 -> 17.24
B23: Item 4 | J23: =" the value of y on the contour with A = "&TEXT(D,"#")&" is" -> the value of y on the contour with A = 38 is | P23: =Sheet2!B44 -> 13.10
A27: To access/download all the DIGMath Apps for Calculus
A28: Click this link: | C28: DIGMath for Calculus
A30: Created by: Sheldon P. Gordon
A31: Farmingdale State College
A32: Development of this module was supported by the
A33: NSF's Division of Undergraduate Education
A34: under grants DUE-0310123 and DUE-0442160.

Sheet Sheet2
A1: x = | B1: -4
A2: y = | B2: 4
A6: A = 10
A7: 0.1 | B7: =10/A7 -> 100
A8: 5 | B8: =10/A8 -> 2
A9: 10 | B9: =10/A9 -> 1
A11: =x0 -> 2.9 | B11: =10/A11 -> 3.45
A12: =x0 -> 2.9 | B12: =B11 -> 3.45
A14: =x0 -> 2.9 | B14: =10/A14 -> 3.45
A16: A =30
A17: 0.1 | B17: =30/A17 -> 300.00
A18: 5 | B18: =30/A18 -> 6.00
A19: 10 | B19: 3.00
A21: =x0 -> 2.9 | B21: 10.34
A22: =x0+0.2 -> 3.1 | B22: 9.68
A24: =x0 -> 2.9 | B24: 10.34
A26: A = 50
A27: 0.1 | B27: =50/A27 -> 500.00
A28: 5 | B28: =50/A28 -> 10.00
A29: 10 | B29: 5.00
A31: =x0 -> 2.9 | B31: 17.24
A32: =A31 -> 2.9 | B32: 17.24
A34: =x0 -> 2.9 | B34: 17.24
A36: ="A ="&TEXT(D,"#.#") -> A =38.
A37: 0.1 | B37: =D/A37 -> 380.00
A38: 5 | B38: =D/A38 -> 7.60
A39: 10 | B39: =D/A39 -> 3.80
A41: =x0 -> 2.9 | B41: =D/A41 -> 13.10
A42: =A41 -> 2.9 | B42: =D/A42 -> 13.10
A44: =x0 -> 2.9 | B44: =D/A44 -> 13.10
